[Event "*** Titled Tuesday 3|2 Blitz"]
[Site "Chess.com"]
[Date "2017.03.07"]
[Round "11"]
[White "Grebeniuk-S"]
[Black "SergeiAza"]
[Result "0-1"]
[WhiteElo "2439"]
[BlackElo "2597"]
[TimeControl "180+2"]
[EndTime "15:36:45 PST"]
[Termination "SergeiAza won by resignation"]

1. d4 {[%clk 0:03:02]} 1... d5 {[%clk 0:03:00.2]} 2. c4 {[%clk 0:03:03.1]} 2...
e6 {[%clk 0:03:01.1]} 3. Nc3 {[%clk 0:03:03.6]} 3... Be7 {[%clk 0:03:02.1]} 4.
Nf3 {[%clk 0:03:03.9]} 4... Nf6 {[%clk 0:03:03]} 5. cxd5 {[%clk 0:03:03.1]} 5...
exd5 {[%clk 0:03:03.2]} 6. Bf4 {[%clk 0:03:04.5]} 6... Bf5 {[%clk 0:02:52.7]} 7.
e3 {[%clk 0:03:03.2]} 7... c6 {[%clk 0:02:50.3]} 8. Ne5 {[%clk 0:02:51.9]} 8...
Nbd7 {[%clk 0:02:47.4]} 9. g4 {[%clk 0:02:45]} 9... Be6 {[%clk 0:02:39.3]} 10.
Be2 {[%clk 0:02:42.6]} 10... Nxe5 {[%clk 0:02:31.6]} 11. Bxe5 {[%clk 0:02:40.7]}
11... O-O {[%clk 0:02:31.5]} 12. a3 {[%clk 0:02:26.8]} 12... a5 {[%clk
0:02:28.8]} 13. h4 {[%clk 0:02:22.5]} 13... b5 {[%clk 0:02:24.3]} 14. h5 {[%clk
0:02:13]} 14... h6 {[%clk 0:02:22.2]} 15. Rg1 {[%clk 0:02:09.6]} 15... Nd7
{[%clk 0:02:20.2]} 16. Bf4 {[%clk 0:02:03.2]} 16... b4 {[%clk 0:01:59.5]} 17.
Na4 {[%clk 0:02:03.7]} 17... Re8 {[%clk 0:01:44.4]} 18. Kf1 {[%clk 0:01:53]}
18... Bg5 {[%clk 0:01:38.9]} 19. Bh2 {[%clk 0:01:47]} 19... Qe7 {[%clk
0:01:29.6]} 20. Qd3 {[%clk 0:01:41.3]} 20... c5 {[%clk 0:01:27.3]} 21. dxc5
{[%clk 0:01:37.8]} 21... Nxc5 {[%clk 0:01:27.8]} 22. Nxc5 {[%clk 0:01:39.7]}
22... Qxc5 {[%clk 0:01:28.6]} 23. Kg2 {[%clk 0:01:22.4]} 23... Bf6 {[%clk
0:01:25]} 24. Rac1 {[%clk 0:01:20.1]} 24... Qb6 {[%clk 0:01:20.4]} 25. axb4
{[%clk 0:01:15.2]} 25... axb4 {[%clk 0:01:20.1]} 26. b3 {[%clk 0:00:49.4]} 26...
Rac8 {[%clk 0:01:19.3]} 27. Bf3 {[%clk 0:00:47.3]} 27... d4 {[%clk 0:01:12.5]}
28. exd4 {[%clk 0:00:34.9]} 28... Bxd4 {[%clk 0:01:10.8]} 29. Bg3 {[%clk
0:00:33.8]} 29... Rc3 {[%clk 0:01:09.7]} 30. Rxc3 {[%clk 0:00:31.8]} 30... bxc3
{[%clk 0:01:10.6]} 31. Qe4 {[%clk 0:00:25.2]} 31... Bf6 {[%clk 0:01:05.4]} 32.
Bd1 {[%clk 0:00:24.2]} 32... Rd8 {[%clk 0:00:59.2]} 33. Bc2 {[%clk 0:00:24.6]}
33... Bd5 {[%clk 0:00:59.9]} 0-1

[Event "*** Titled Tuesday 3|2 Blitz"]
[Site "Chess.com"]
[Date "2017.03.07"]
[Round "11"]
[White "Yaacovn"]
[Black "GeorgMeier"]
[Result "1-0"]
[WhiteElo "2619"]
[BlackElo "2713"]
[TimeControl "180+2"]
[EndTime "15:37:04 PST"]
[Termination "Yaacovn won by checkmate"]

1. d4 {[%clk 0:03:01.9]} 1... d5 {[%clk 0:03:00.9]} 2. Nf3 {[%clk 0:02:59.5]}
2... Nf6 {[%clk 0:03:01.8]} 3. Bf4 {[%clk 0:03:00.2]} 3... c5 {[%clk 0:03:02.5]}
4. c3 {[%clk 0:03:01]} 4... Nc6 {[%clk 0:03:01.6]} 5. Nbd2 {[%clk 0:03:00.6]}
5... cxd4 {[%clk 0:03:00.4]} 6. cxd4 {[%clk 0:03:01.5]} 6... Bf5 {[%clk
0:03:01.4]} 7. e3 {[%clk 0:03:02.3]} 7... e6 {[%clk 0:03:02.5]} 8. Qb3 {[%clk
0:03:03]} 8... Qb6 {[%clk 0:03:00.5]} 9. Qxb6 {[%clk 0:03:04.1]} 9... axb6
{[%clk 0:03:01.6]} 10. Bb5 {[%clk 0:03:06]} 10... Nd7 {[%clk 0:03:00.1]} 11. O-O
{[%clk 0:03:05.6]} 11... Be7 {[%clk 0:02:43.8]} 12. Rfc1 {[%clk 0:03:06]} 12...
Rc8 {[%clk 0:02:43.3]} 13. a3 {[%clk 0:02:59.7]} 13... f6 {[%clk 0:02:16.8]} 14.
Rc3 {[%clk 0:02:55.5]} 14... g5 {[%clk 0:01:49.3]} 15. Bg3 {[%clk 0:02:55.1]}
15... h5 {[%clk 0:01:50.5]} 16. h4 {[%clk 0:02:51.4]} 16... g4 {[%clk
0:01:51.3]} 17. Ne1 {[%clk 0:02:49.8]} 17... Kf7 {[%clk 0:01:41.8]} 18. Rac1
{[%clk 0:02:48.5]} 18... e5 {[%clk 0:01:17.8]} 19. Nd3 {[%clk 0:01:35.6]} 19...
exd4 {[%clk 0:01:09.4]} 20. exd4 {[%clk 0:01:35.5]} 20... Bxd3 {[%clk
0:00:37.4]} 21. Bxd3 {[%clk 0:01:32.6]} 21... Nf8 {[%clk 0:00:23.8]} 22. Nf1
{[%clk 0:00:51.6]} 22... Ne6 {[%clk 0:00:21.6]} 23. Ne3 {[%clk 0:00:52.7]} 23...
Rcd8 {[%clk 0:00:22.7]} 24. Nf5 {[%clk 0:00:46.8]} 24... Rhe8 {[%clk 0:00:10.7]}
25. Bb5 {[%clk 0:00:37.1]} 25... Bf8 {[%clk 0:00:09.8]} 26. Re3 {[%clk
0:00:26.1]} 26... Kg6 {[%clk 0:00:10.7]} 27. Bd3 {[%clk 0:00:27]} 27... Kf7
{[%clk 0:00:12.2]} 28. Rce1 {[%clk 0:00:21.7]} 28... Ng7 {[%clk 0:00:08.8]} 29.
Nh6# {[%clk 0:00:21.7]} 1-0

[Event "*** Titled Tuesday 3|2 Blitz"]
[Site "Chess.com"]
[Date "2017.03.07"]
[Round "11"]
[White "Feegus"]
[Black "Rating-Schmating"]
[Result "1-0"]
[WhiteElo "2390"]
[BlackElo "2281"]
[TimeControl "180+2"]
[EndTime "15:37:13 PST"]
[Termination "Feegus won by checkmate"]

1. d4 {[%clk 0:03:02]} 1... Nf6 {[%clk 0:03:00.4]} 2. Bf4 {[%clk 0:03:01.3]}
2... d5 {[%clk 0:02:59.6]} 3. e3 {[%clk 0:03:02.8]} 3... Bf5 {[%clk 0:02:59.4]}
4. c4 {[%clk 0:03:02.7]} 4... Nc6 {[%clk 0:02:57.9]} 5. Nf3 {[%clk 0:02:59.9]}
5... e6 {[%clk 0:02:50.1]} 6. Nc3 {[%clk 0:03:00.7]} 6... Bd6 {[%clk 0:02:46]}
7. Bg3 {[%clk 0:02:58.1]} 7... Nb4 {[%clk 0:02:34.1]} 8. Rc1 {[%clk 0:02:54.4]}
8... dxc4 {[%clk 0:02:31.2]} 9. Bxc4 {[%clk 0:02:54.4]} 9... c6 {[%clk 0:02:29]}
10. Qb3 {[%clk 0:02:51.1]} 10... b5 {[%clk 0:02:14]} 11. Be2 {[%clk 0:02:48.8]}
11... Nd3+ {[%clk 0:02:08.6]} 12. Bxd3 {[%clk 0:02:49.7]} 12... Bxd3 {[%clk
0:02:08.9]} 13. Bxd6 {[%clk 0:02:46.9]} 13... Qxd6 {[%clk 0:02:06.9]} 14. Ne5
{[%clk 0:02:48.8]} 14... Bf5 {[%clk 0:02:01]} 15. Ne2 {[%clk 0:02:49.6]} 15...
Rc8 {[%clk 0:01:54.2]} 16. O-O {[%clk 0:02:45.1]} 16... Nd7 {[%clk 0:01:50.1]}
17. Nxd7 {[%clk 0:02:43.3]} 17... Qxd7 {[%clk 0:01:50.6]} 18. Rfd1 {[%clk
0:02:42.4]} 18... O-O {[%clk 0:01:50.3]} 19. f3 {[%clk 0:02:41.9]} 19... Bg6
{[%clk 0:01:45.7]} 20. Rc5 {[%clk 0:02:38.7]} 20... Rfd8 {[%clk 0:01:44.4]} 21.
Nf4 {[%clk 0:02:36.3]} 21... Rc7 {[%clk 0:01:36.6]} 22. Rdc1 {[%clk 0:02:34.2]}
22... Rdc8 {[%clk 0:01:36.9]} 23. h4 {[%clk 0:02:32.2]} 23... h6 {[%clk
0:01:01.2]} 24. Nxg6 {[%clk 0:02:32.1]} 24... fxg6 {[%clk 0:01:03.1]} 25. Re5
{[%clk 0:02:31.8]} 25... Kf7 {[%clk 0:01:02.1]} 26. Rcc5 {[%clk 0:02:29.7]}
26... a5 {[%clk 0:01:00.2]} 27. Qc2 {[%clk 0:02:13.4]} 27... Qe7 {[%clk
0:00:55.1]} 28. Qe4 {[%clk 0:02:11.7]} 28... Qf6 {[%clk 0:00:52.2]} 29. a3
{[%clk 0:01:52.5]} 29... a4 {[%clk 0:00:52.4]} 30. g3 {[%clk 0:01:50.8]} 30...
Qe7 {[%clk 0:00:42.2]} 31. Kg2 {[%clk 0:01:51.6]} 31... Qd7 {[%clk 0:00:42.7]}
32. g4 {[%clk 0:01:47.9]} 32... Qe7 {[%clk 0:00:39.4]} 33. h5 {[%clk 0:01:46.8]}
33... Qf6 {[%clk 0:00:26.8]} 34. Kg3 {[%clk 0:01:43]} 34... g5 {[%clk
0:00:19.7]} 35. f4 {[%clk 0:01:44.5]} 35... g6 {[%clk 0:00:17.9]} 36. fxg5
{[%clk 0:01:41.9]} 36... Qf1 {[%clk 0:00:16.3]} 37. Qxg6+ {[%clk 0:01:40.2]}
37... Kf8 {[%clk 0:00:17.2]} 38. Qxh6+ {[%clk 0:01:39]} 38... Kg8 {[%clk
0:00:17.7]} 39. Qxe6+ {[%clk 0:01:39]} 39... Kh8 {[%clk 0:00:19.4]} 40. Qf6+
{[%clk 0:01:38.6]} 40... Qxf6 {[%clk 0:00:19.9]} 41. gxf6 {[%clk 0:01:39.6]}
41... Rf8 {[%clk 0:00:21.8]} 42. g5 {[%clk 0:01:40.4]} 42... Kh7 {[%clk
0:00:23.4]} 43. Re7+ {[%clk 0:01:39.8]} 43... Rxe7 {[%clk 0:00:24.7]} 44. fxe7
{[%clk 0:01:40.9]} 44... Re8 {[%clk 0:00:26.6]} 45. Re5 {[%clk 0:01:39.8]} 45...
c5 {[%clk 0:00:27.7]} 46. dxc5 {[%clk 0:01:37.1]} 46... Kg7 {[%clk 0:00:29.6]}
47. Kf4 {[%clk 0:01:36.4]} 47... Kf7 {[%clk 0:00:30.5]} 48. Kf5 {[%clk
0:01:32.9]} 48... Kg7 {[%clk 0:00:31.8]} 49. c6 {[%clk 0:01:33.8]} 49... Rxe7
{[%clk 0:00:32]} 50. Rxe7+ {[%clk 0:01:34.7]} 50... Kf8 {[%clk 0:00:33.2]} 51.
Rh7 {[%clk 0:01:34.5]} 51... Kg8 {[%clk 0:00:35.1]} 52. g6 {[%clk 0:01:34.2]}
52... Kf8 {[%clk 0:00:36.1]} 53. c7 {[%clk 0:01:35.7]} 53... Ke8 {[%clk
0:00:38]} 54. c8=Q# {[%clk 0:01:37.6]} 1-0

[Event "*** Titled Tuesday 3|2 Blitz"]
[Site "Chess.com"]
[Date "2017.03.07"]
[Round "11"]
[White "ZEN-22"]
[Black "Hanging_pointer"]
[Result "1-0"]
[WhiteElo "2370"]
[BlackElo "2280"]
[TimeControl "180+2"]
[EndTime "15:37:33 PST"]
[Termination "ZEN-22 won by resignation"]

1. e3 {[%clk 0:03:02]} 1... g6 {[%clk 0:02:59]} 2. Ne2 {[%clk 0:03:03.9]} 2...
Bg7 {[%clk 0:03:00.9]} 3. d4 {[%clk 0:03:05.8]} 3... d6 {[%clk 0:03:00.4]} 4. h4
{[%clk 0:03:06.9]} 4... h5 {[%clk 0:02:59]} 5. g3 {[%clk 0:03:07.5]} 5... Nd7
{[%clk 0:03:00.1]} 6. Bg2 {[%clk 0:03:08.9]} 6... c5 {[%clk 0:03:02]} 7. Nbc3
{[%clk 0:03:08]} 7... Ngf6 {[%clk 0:03:02.6]} 8. dxc5 {[%clk 0:03:07.3]} 8...
Nxc5 {[%clk 0:03:03.7]} 9. Nf4 {[%clk 0:03:08.3]} 9... O-O {[%clk 0:03:04]} 10.
Ncd5 {[%clk 0:03:06.3]} 10... Bg4 {[%clk 0:03:03]} 11. Nxf6+ {[%clk 0:03:06.8]}
11... Bxf6 {[%clk 0:03:03.9]} 12. Bf3 {[%clk 0:03:07.1]} 12... Bxf3 {[%clk
0:03:03.1]} 13. Qxf3 {[%clk 0:03:08.2]} 13... Qa5+ {[%clk 0:02:50]} 14. Bd2
{[%clk 0:03:08.4]} 14... Qb5 {[%clk 0:02:49.6]} 15. Nd5 {[%clk 0:02:59.9]} 15...
Qxb2 {[%clk 0:02:47.5]} 16. O-O {[%clk 0:02:57.1]} 16... Qxc2 {[%clk 0:02:39.9]}
17. Nxf6+ {[%clk 0:02:52.2]} 17... exf6 {[%clk 0:02:41.8]} 18. Rfd1 {[%clk
0:02:47.7]} 18... f5 {[%clk 0:02:33.8]} 19. Bb4 {[%clk 0:02:44.5]} 19... Rfd8
{[%clk 0:02:26.1]} 20. Bxc5 {[%clk 0:02:31.3]} 20... dxc5 {[%clk 0:02:28]} 21.
Rxd8+ {[%clk 0:02:31.2]} 21... Rxd8 {[%clk 0:02:28.5]} 22. Qxb7 {[%clk
0:02:33.1]} 22... Rd2 {[%clk 0:01:50.7]} 23. Rf1 {[%clk 0:02:26.5]} 23... Qxa2
{[%clk 0:01:51]} 24. Qc8+ {[%clk 0:02:27.5]} 24... Kg7 {[%clk 0:01:50.5]} 25.
Qxc5 {[%clk 0:02:29.4]} 25... Rd7 {[%clk 0:01:06.5]} 26. Qe5+ {[%clk 0:02:16.6]}
26... Kh7 {[%clk 0:00:56.1]} 27. Ra1 {[%clk 0:02:11]} 27... Qc4 {[%clk
0:00:54.5]} 28. Qb8 {[%clk 0:02:05.5]} 28... Qe4 {[%clk 0:00:36.3]} 29. Rc1
{[%clk 0:01:57.1]} 29... a5 {[%clk 0:00:35.2]} 30. Qf8 {[%clk 0:01:50.5]} 30...
a4 {[%clk 0:00:31.8]} 31. Ra1 {[%clk 0:01:35.8]} 31... Rd2 {[%clk 0:00:28.2]}
32. Qxf7+ {[%clk 0:01:35.6]} 32... Kh6 {[%clk 0:00:29.7]} 33. Qg8 {[%clk
0:01:34.5]} 33... Qe5 {[%clk 0:00:26.8]} 34. Rxa4 {[%clk 0:01:31.7]} 34... Rd1+
{[%clk 0:00:23.6]} 35. Kh2 {[%clk 0:01:32.8]} 35... Qg7 {[%clk 0:00:24.6]} 36.
Qb3 {[%clk 0:01:32.5]} 36... Qd7 {[%clk 0:00:22.9]} 37. Rf4 {[%clk 0:01:29.5]}
37... Qc6 {[%clk 0:00:20.8]} 38. e4 {[%clk 0:01:30.5]} 38... Qc1 {[%clk
0:00:18.8]} 39. Qf3 {[%clk 0:01:30.1]} 39... fxe4 {[%clk 0:00:05.1]} 40. Rxe4
{[%clk 0:01:28.6]} 40... Rf1 {[%clk 0:00:04.6]} 41. Kg2 {[%clk 0:01:27.3]} 41...
Rg1+ {[%clk 0:00:05]} 42. Kh2 {[%clk 0:01:28.6]} 42... Re1 {[%clk 0:00:04.4]}
43. Rxe1 {[%clk 0:01:26.5]} 43... Qxe1 {[%clk 0:00:06.3]} 44. Qe3+ {[%clk
0:01:27.9]} 44... Qxe3 {[%clk 0:00:07.2]} 45. fxe3 {[%clk 0:01:29.3]} 45... g5
{[%clk 0:00:09.1]} 46. Kg2 {[%clk 0:01:29.8]} 46... Kg6 {[%clk 0:00:09.3]} 47.
Kf3 {[%clk 0:01:30.8]} 47... Kf5 {[%clk 0:00:08.6]} 48. e4+ {[%clk 0:01:32.1]}
48... Kf6 {[%clk 0:00:09]} 49. Ke3 {[%clk 0:01:32.9]} 49... gxh4 {[%clk
0:00:07.2]} 50. gxh4 {[%clk 0:01:33.8]} 1-0

[Event "*** Titled Tuesday 3|2 Blitz"]
[Site "Chess.com"]
[Date "2017.03.07"]
[Round "11"]
[White "igorkovalenko"]
[Black "Hunninn"]
[Result "1-0"]
[WhiteElo "2693"]
[BlackElo "2439"]
[TimeControl "180+2"]
[EndTime "15:37:41 PST"]
[Termination "igorkovalenko won by resignation"]

1. c4 {[%clk 0:03:02]} 1... Nf6 {[%clk 0:02:57.3]} 2. Nc3 {[%clk 0:03:03.6]}
2... c5 {[%clk 0:02:51.6]} 3. g3 {[%clk 0:03:04.7]} 3... Nc6 {[%clk 0:02:52.2]}
4. Bg2 {[%clk 0:03:06.6]} 4... g6 {[%clk 0:02:53.6]} 5. Nf3 {[%clk 0:03:08.5]}
5... Bg7 {[%clk 0:02:55]} 6. O-O {[%clk 0:03:10.4]} 6... O-O {[%clk 0:02:54.4]}
7. d3 {[%clk 0:03:11.7]} 7... a6 {[%clk 0:02:54]} 8. Rb1 {[%clk 0:03:09.9]} 8...
Rb8 {[%clk 0:02:54.7]} 9. a4 {[%clk 0:03:09.8]} 9... d6 {[%clk 0:02:53.7]} 10.
Ne1 {[%clk 0:03:10.7]} 10... Bd7 {[%clk 0:02:53.9]} 11. Nc2 {[%clk 0:03:11]}
11... Nb4 {[%clk 0:02:51.4]} 12. Bd2 {[%clk 0:03:04.4]} 12... a5 {[%clk
0:02:34.3]} 13. Na3 {[%clk 0:02:56.1]} 13... Bc6 {[%clk 0:02:31.3]} 14. Nab5
{[%clk 0:02:38.9]} 14... d5 {[%clk 0:02:21.9]} 15. Bf4 {[%clk 0:02:38.4]} 15...
Ra8 {[%clk 0:02:16.2]} 16. b3 {[%clk 0:02:15.4]} 16... Ne8 {[%clk 0:02:02.5]}
17. Rc1 {[%clk 0:02:08.7]} 17... d4 {[%clk 0:01:55.2]} 18. Nb1 {[%clk
0:02:09.1]} 18... e5 {[%clk 0:01:52.4]} 19. Bd2 {[%clk 0:02:09.7]} 19... f5
{[%clk 0:01:51.3]} 20. Bxb4 {[%clk 0:02:10.7]} 20... axb4 {[%clk 0:01:51.3]} 21.
Nd2 {[%clk 0:02:11.4]} 21... Qe7 {[%clk 0:01:48.8]} 22. Qc2 {[%clk 0:02:12.6]}
22... Bh6 {[%clk 0:01:47.6]} 23. Rce1 {[%clk 0:02:13.5]} 23... Nf6 {[%clk
0:01:33.6]} 24. h3 {[%clk 0:01:55.3]} 24... Rfe8 {[%clk 0:01:33.9]} 25. e3
{[%clk 0:01:56.4]} 25... dxe3 {[%clk 0:01:34.1]} 26. fxe3 {[%clk 0:01:58.3]}
26... Rad8 {[%clk 0:01:27.5]} 27. d4 {[%clk 0:01:09.8]} 27... cxd4 {[%clk
0:01:05.9]} 28. exd4 {[%clk 0:01:11.7]} 28... Bxd2 {[%clk 0:01:02.8]} 29. Qxd2
{[%clk 0:01:10.9]} 29... Bxb5 {[%clk 0:01:03.4]} 30. axb5 {[%clk 0:01:08.4]}
30... Rxd4 {[%clk 0:01:04.8]} 31. Qxd4 {[%clk 0:01:09]} 31... exd4 {[%clk
0:01:05.3]} 32. Rxe7 {[%clk 0:01:10.7]} 32... Rxe7 {[%clk 0:01:06.1]} 33. Rd1
{[%clk 0:01:11]} 33... Re3 {[%clk 0:01:06.5]} 34. Bxb7 {[%clk 0:01:10.3]} 34...
Rxb3 {[%clk 0:00:55.3]} 35. Rxd4 {[%clk 0:01:06.5]} 35... Rc3 {[%clk 0:00:46.7]}
36. b6 {[%clk 0:00:56.3]} 36... b3 {[%clk 0:00:47.8]} 37. Bd5+ {[%clk
0:00:57.3]} 37... Nxd5 {[%clk 0:00:31.8]} 38. b7 {[%clk 0:00:58.4]} 38... Ne3
{[%clk 0:00:19]} 39. b8=Q+ {[%clk 0:00:48.5]} 39... Kg7 {[%clk 0:00:20]} 40.
Qe5+ {[%clk 0:00:49.4]} 1-0

[Event "*** Titled Tuesday 3|2 Blitz"]
[Site "Chess.com"]
[Date "2017.03.07"]
[Round "11"]
[White "kereswasbest"]
[Black "AllStarShark"]
[Result "0-1"]
[WhiteElo "2042"]
[BlackElo "2273"]
[TimeControl "180+2"]
[EndTime "15:37:45 PST"]
[Termination "AllStarShark won on time"]

1. d4 {[%clk 0:03:02]} 1... d5 {[%clk 0:03:00.4]} 2. c4 {[%clk 0:03:03.2]} 2...
dxc4 {[%clk 0:03:02.3]} 3. e4 {[%clk 0:03:03]} 3... Nc6 {[%clk 0:03:02.2]} 4. d5
{[%clk 0:03:02.2]} 4... Ne5 {[%clk 0:03:01.5]} 5. f4 {[%clk 0:03:02.3]} 5...
Nd3+ {[%clk 0:03:02.1]} 6. Bxd3 {[%clk 0:03:01.5]} 6... cxd3 {[%clk 0:03:04]} 7.
Qxd3 {[%clk 0:03:03.4]} 7... c6 {[%clk 0:02:53.8]} 8. Nc3 {[%clk 0:03:02.7]}
8... cxd5 {[%clk 0:02:49.1]} 9. exd5 {[%clk 0:02:59.7]} 9... e6 {[%clk
0:02:49.7]} 10. Nf3 {[%clk 0:02:56.2]} 10... exd5 {[%clk 0:02:50.6]} 11. Nxd5
{[%clk 0:02:55.2]} 11... Be6 {[%clk 0:02:42.2]} 12. Qb5+ {[%clk 0:02:51.1]}
12... Bd7 {[%clk 0:02:42.4]} 13. Qe2+ {[%clk 0:02:47.9]} 13... Be7 {[%clk
0:02:38.1]} 14. O-O {[%clk 0:02:38.6]} 14... Be6 {[%clk 0:02:37.5]} 15. Nxe7
{[%clk 0:02:30.2]} 15... Nxe7 {[%clk 0:02:39.4]} 16. Kh1 {[%clk 0:02:25.6]}
16... O-O {[%clk 0:02:40.1]} 17. b3 {[%clk 0:02:22.4]} 17... Nf5 {[%clk
0:02:37.6]} 18. Bb2 {[%clk 0:02:17.1]} 18... Qb6 {[%clk 0:02:38.2]} 19. Ng5
{[%clk 0:02:10.3]} 19... Rfe8 {[%clk 0:02:33.6]} 20. Rae1 {[%clk 0:01:28.7]}
20... h6 {[%clk 0:02:30.5]} 21. Ne4 {[%clk 0:01:21.4]} 21... Nd4 {[%clk
0:02:22.6]} 22. Qf2 {[%clk 0:01:08.3]} 22... Nf5 {[%clk 0:02:16.1]} 23. Qf3
{[%clk 0:00:54.8]} 23... Bd5 {[%clk 0:02:11.6]} 24. Nf6+ {[%clk 0:00:52.7]}
24... Qxf6 {[%clk 0:02:08.8]} 25. Qxd5 {[%clk 0:00:32.3]} 25... Qxb2 {[%clk
0:01:52]} 26. Qxf5 {[%clk 0:00:32.9]} 26... Qf2 {[%clk 0:01:47.4]} 27. Rc1
{[%clk 0:00:19.1]} 27... Qe2 {[%clk 0:01:34.1]} 28. h3 {[%clk 0:00:15.2]} 28...
Rad8 {[%clk 0:01:33.6]} 29. Rfe1 {[%clk 0:00:07.9]} 29... Qd2 {[%clk 0:01:21.8]}
30. Rxe8+ {[%clk 0:00:06.7]} 30... Rxe8 {[%clk 0:01:23.7]} 31. Rc7 {[%clk
0:00:07.3]} 31... Rf8 {[%clk 0:01:06.2]} 32. Rxb7 {[%clk 0:00:08]} 32... Qd4
{[%clk 0:01:04]} 33. Kh2 {[%clk 0:00:08.2]} 33... g6 {[%clk 0:01:05.1]} 34. Qd7
{[%clk 0:00:08.1]} 34... Qxf4+ {[%clk 0:01:05.3]} 35. Kg1 {[%clk 0:00:07.7]}
35... Qe3+ {[%clk 0:01:01.2]} 36. Kh2 {[%clk 0:00:08.6]} 36... Qe5+ {[%clk
0:01:01.8]} 37. Kg1 {[%clk 0:00:08.8]} 37... Qe3+ {[%clk 0:01:00.5]} 38. Kh2
{[%clk 0:00:09.8]} 38... Qf4+ {[%clk 0:01:01.4]} 39. Kg1 {[%clk 0:00:10.7]}
39... Qf6 {[%clk 0:01:02.9]} 40. Rxa7 {[%clk 0:00:06.2]} 40... Rd8 {[%clk
0:01:03.5]} 0-1

[Event "*** Titled Tuesday 3|2 Blitz"]
[Site "Chess.com"]
[Date "2017.03.07"]
[Round "11"]
[White "Journey_to_GrandMaster_YT"]
[Black "JeremDev"]
[Result "0-1"]
[WhiteElo "2346"]
[BlackElo "2245"]
[TimeControl "180+2"]
[EndTime "15:37:49 PST"]
[Termination "JeremDev won by resignation"]

1. Nf3 {[%clk 0:03:02]} 1... g6 {[%clk 0:03:00.5]} 2. g3 {[%clk 0:03:03.9]} 2...
Bg7 {[%clk 0:03:01.5]} 3. Bg2 {[%clk 0:03:05.8]} 3... e5 {[%clk 0:03:02.4]} 4.
O-O {[%clk 0:03:06.9]} 4... Ne7 {[%clk 0:03:01.6]} 5. c4 {[%clk 0:02:59.6]} 5...
O-O {[%clk 0:03:01.7]} 6. Nc3 {[%clk 0:02:57.7]} 6... d6 {[%clk 0:02:58.1]} 7.
d4 {[%clk 0:02:57.7]} 7... exd4 {[%clk 0:02:57.8]} 8. Nxd4 {[%clk 0:02:57.9]}
8... Nbc6 {[%clk 0:02:58.7]} 9. Nb3 {[%clk 0:02:53.9]} 9... Be6 {[%clk
0:02:54.3]} 10. c5 {[%clk 0:02:54.2]} 10... d5 {[%clk 0:02:47.9]} 11. Bg5 {[%clk
0:02:49.7]} 11... h6 {[%clk 0:02:38.5]} 12. Bf4 {[%clk 0:02:49.2]} 12... g5
{[%clk 0:02:35.7]} 13. Bd2 {[%clk 0:02:41.3]} 13... Ne5 {[%clk 0:02:22.8]} 14.
Nd4 {[%clk 0:02:35.9]} 14... Bg4 {[%clk 0:02:12.4]} 15. Nc2 {[%clk 0:01:53.7]}
15... c6 {[%clk 0:02:09.3]} 16. Bc1 {[%clk 0:01:38.8]} 16... Nc4 {[%clk
0:02:05.8]} 17. Qd3 {[%clk 0:01:36.6]} 17... Bf5 {[%clk 0:01:57.1]} 18. Qd1
{[%clk 0:01:31]} 18... Bg6 {[%clk 0:01:51]} 19. Ne1 {[%clk 0:01:19.5]} 19... f5
{[%clk 0:01:41.7]} 20. e3 {[%clk 0:01:17.3]} 20... Qa5 {[%clk 0:01:29.6]} 21.
Nd3 {[%clk 0:01:04.9]} 21... Rae8 {[%clk 0:01:23.7]} 22. b4 {[%clk 0:01:00.1]}
22... Qc7 {[%clk 0:01:22.8]} 23. Qc2 {[%clk 0:01:00.7]} 23... Kh7 {[%clk
0:01:10.9]} 24. Rb1 {[%clk 0:00:54.3]} 24... a6 {[%clk 0:01:11]} 25. Ne2 {[%clk
0:00:52.1]} 25... Ng8 {[%clk 0:01:11.5]} 26. a4 {[%clk 0:00:51.3]} 26... Nf6
{[%clk 0:01:07.6]} 27. b5 {[%clk 0:00:50.9]} 27... axb5 {[%clk 0:01:09]} 28.
axb5 {[%clk 0:00:51.7]} 28... Ne4 {[%clk 0:01:10.2]} 29. Nd4 {[%clk 0:00:47.5]}
29... f4 {[%clk 0:01:03]} 30. bxc6 {[%clk 0:00:43.3]} 30... bxc6 {[%clk
0:01:02.3]} 31. Qe2 {[%clk 0:00:20]} 31... Nc3 {[%clk 0:00:42.3]} 32. Qc2 {[%clk
0:00:20.6]} 32... Nxb1 {[%clk 0:00:43]} 33. Qxb1 {[%clk 0:00:22.5]} 33... fxe3
{[%clk 0:00:30]} 34. fxe3 {[%clk 0:00:22.2]} 34... Rxf1+ {[%clk 0:00:29.1]} 35.
Bxf1 {[%clk 0:00:24.1]} 35... Nxe3 {[%clk 0:00:27.5]} 36. Nf3 {[%clk 0:00:21.5]}
36... Nxf1 {[%clk 0:00:27.1]} 37. Kxf1 {[%clk 0:00:23]} 37... Qf7 {[%clk
0:00:24.8]} 38. Kg2 {[%clk 0:00:23.2]} 38... Qf5 {[%clk 0:00:24.2]} 39. Nfe1
{[%clk 0:00:15.5]} 39... Rxe1 {[%clk 0:00:24.6]} 0-1